[Event "Titled Tuesday Blitz March 22 Late 2022"]
[White "Rosenberg, Evan S"]
[Black "Rudykh, Stepan"]
[WhiteFideId "2019299"]
[BlackFideId "4180321"]
[WhiteElo "2333"]
[BlackElo "2140"]
[Result "1-0"]
[Round "04"]
[TimeControl "180+1"]
[Date "2022.03.22"]
[WhiteClock "0:00:02"]
[BlackClock "0:00:02"]

1. d4 {[%clk 0:03:00]}  e6 {[%clk 0:03:00]} 2. c4 {[%clk 0:03:00]}  f5 {[%clk 0:03:00]} 3. g3 {[%clk 0:02:59]}  Nf6 {[%clk 0:03:00]} 4. Bg2 {[%clk 0:02:59]}  Be7 {[%clk 0:03:01]} 5. Nh3 {[%clk 0:02:57]}  O-O {[%clk 0:03:00]} 6. Nf4 {[%clk 0:02:55]}  d6 {[%clk 0:02:59]} 7. d5 {[%clk 0:02:53]}  e5 {[%clk 0:02:59]} 8. Ne6 {[%clk 0:02:53]}  Bxe6 {[%clk 0:02:59]} 9. dxe6 {[%clk 0:02:54]}  Nc6 {[%clk 0:02:59]} 10. Nc3 {[%clk 0:02:50]}  Qe8 {[%clk 0:02:53]} 11. Nd5 {[%clk 0:02:49]}  Bd8 {[%clk 0:02:53]} 12. O-O {[%clk 0:02:39]}  Qxe6 {[%clk 0:02:50]} 13. Bg5 {[%clk 0:02:31]}  Kh8 {[%clk 0:02:32]} 14. Bxf6 {[%clk 0:02:10]}  gxf6 {[%clk 0:02:30]} 15. e3 {[%clk 0:02:07]}  a5 {[%clk 0:02:20]} 16. Qh5 {[%clk 0:02:06]}  Ne7 {[%clk 0:02:09]} 17. Rad1 {[%clk 0:01:44]}  Nxd5 {[%clk 0:01:57]} 18. Bxd5 {[%clk 0:01:43]}  Qc8 {[%clk 0:01:57]} 19. f4 {[%clk 0:01:31]}  e4 {[%clk 0:01:44]} 20. c5 {[%clk 0:01:30]}  c6 {[%clk 0:01:39]} 21. Bc4 {[%clk 0:01:18]}  d5 {[%clk 0:01:36]} 22. Be2 {[%clk 0:01:18]}  Be7 {[%clk 0:01:30]} 23. Rc1 {[%clk 0:01:08]}  Qe6 {[%clk 0:01:10]} 24. g4 {[%clk 0:01:05]}  fxg4 {[%clk 0:01:07]} 25. Bxg4 {[%clk 0:01:05]}  Rg8 {[%clk 0:01:06]} 26. f5 {[%clk 0:00:55]}  Qe5 {[%clk 0:01:05]} 27. Rf2 {[%clk 0:00:54]}  Rg5 {[%clk 0:01:03]} 28. Qh3 {[%clk 0:00:48]}  Rag8 {[%clk 0:01:01]} 29. Rg2 {[%clk 0:00:48]}  h5 {[%clk 0:00:52]} 30. Kh1 {[%clk 0:00:40]}  R8g7 {[%clk 0:00:38]} 31. Bxh5 {[%clk 0:00:32]}  Qxf5 {[%clk 0:00:22]} 32. Bg4+ {[%clk 0:00:23]}  Qh7 {[%clk 0:00:21]} 33. Qxh7+ {[%clk 0:00:20]}  Kxh7 {[%clk 0:00:21]} 34. Rcg1 {[%clk 0:00:16]}  Bxc5 {[%clk 0:00:15]} 35. h4 {[%clk 0:00:12]}  Rxg4 {[%clk 0:00:09]} 36. Rxg4 {[%clk 0:00:12]}  Rxg4 {[%clk 0:00:09]} 37. Rxg4 {[%clk 0:00:12]}  Bxe3 {[%clk 0:00:10]} 38. Kg2 {[%clk 0:00:10]}  f5 {[%clk 0:00:09]} 39. Rg3 {[%clk 0:00:06]}  f4 {[%clk 0:00:09]} 40. Rg4 {[%clk 0:00:04]}  f3+ {[%clk 0:00:09]} 41. Kf1 {[%clk 0:00:04]}  Kh6 {[%clk 0:00:05]} 42. Rg8 {[%clk 0:00:04]}  Bd4 {[%clk 0:00:03]} 43. Rb8 {[%clk 0:00:02]}  b6 {[%clk 0:00:03]} 44. Rd8 {[%clk 0:00:01]}  Bxb2 {[%clk 0:00:02]} 45. Rd6+ {[%clk 0:00:01]}  Kh5 {[%clk 0:00:02]} 46. Rxc6 {[%clk 0:00:02]} 1-0


[Site "https://www.chess.com"]

[Event "Titled Tuesday Blitz March 22 Late 2022"]
[White "Rostovtsev, Dmitry"]
[Black "Le Goff, Ronan"]
[WhiteFideId "34278320"]
[BlackFideId "612073"]
[WhiteElo "2359"]
[BlackElo "2276"]
[Result "1/2-1/2"]
[Round "04"]
[TimeControl "180+1"]
[Date "2022.03.22"]
[WhiteClock "0:00:36"]
[BlackClock "0:00:06"]

1. e4 {[%clk 0:03:00]}  e5 {[%clk 0:02:59]} 2. Nf3 {[%clk 0:03:00]}  Nc6 {[%clk 0:03:00]} 3. Bb5 {[%clk 0:03:01]}  Nf6 {[%clk 0:02:57]} 4. d3 {[%clk 0:03:01]}  Bc5 {[%clk 0:02:25]} 5. Bxc6 {[%clk 0:03:00]}  dxc6 {[%clk 0:02:24]} 6. Nbd2 {[%clk 0:03:01]}  Nd7 {[%clk 0:02:17]} 7. Nc4 {[%clk 0:02:59]}  Qe7 {[%clk 0:02:15]} 8. Qe2 {[%clk 0:02:57]}  f6 {[%clk 0:02:11]} 9. Bd2 {[%clk 0:02:55]}  Nf8 {[%clk 0:02:11]} 10. O-O-O {[%clk 0:02:53]}  Be6 {[%clk 0:02:11]} 11. Kb1 {[%clk 0:02:47]}  Bxc4 {[%clk 0:02:10]} 12. dxc4 {[%clk 0:02:48]}  Ne6 {[%clk 0:02:09]} 13. Be3 {[%clk 0:02:48]}  Rd8 {[%clk 0:02:06]} 14. Nh4 {[%clk 0:02:46]}  g6 {[%clk 0:02:02]} 15. Rxd8+ {[%clk 0:02:43]}  Kxd8 {[%clk 0:02:01]} 16. Bxc5 {[%clk 0:02:37]}  Qxc5 {[%clk 0:02:00]} 17. Rd1+ {[%clk 0:02:38]}  Ke7 {[%clk 0:01:58]} 18. g3 {[%clk 0:02:30]}  Rd8 {[%clk 0:01:54]} 19. Rxd8 {[%clk 0:02:29]}  Kxd8 {[%clk 0:01:54]} 20. c3 {[%clk 0:02:24]}  Ke7 {[%clk 0:01:47]} 21. Ng2 {[%clk 0:02:23]}  b5 {[%clk 0:01:35]} 22. cxb5 {[%clk 0:02:16]}  cxb5 {[%clk 0:01:36]} 23. Ne3 {[%clk 0:02:16]}  c6 {[%clk 0:01:36]} 24. h4 {[%clk 0:02:14]}  a5 {[%clk 0:01:33]} 25. h5 {[%clk 0:02:11]}  a4 {[%clk 0:01:33]} 26. hxg6 {[%clk 0:02:10]}  hxg6 {[%clk 0:01:34]} 27. a3 {[%clk 0:02:10]}  Qd6 {[%clk 0:01:30]} 28. c4 {[%clk 0:01:46]}  Qd4 {[%clk 0:01:20]} 29. cxb5 {[%clk 0:01:44]}  Qxe4+ {[%clk 0:01:18]} 30. Qc2 {[%clk 0:01:39]}  Qxc2+ {[%clk 0:01:17]} 31. Kxc2 {[%clk 0:01:40]}  cxb5 {[%clk 0:01:17]} 32. Kc3 {[%clk 0:01:40]}  Nc5 {[%clk 0:01:09]} 33. Kb4 {[%clk 0:01:39]}  Nd3+ {[%clk 0:01:08]} 34. Kxb5 {[%clk 0:01:39]}  Nxb2 {[%clk 0:01:08]} 35. Nd5+ {[%clk 0:01:38]}  Ke6 {[%clk 0:01:05]} 36. Nc3 {[%clk 0:01:38]}  f5 {[%clk 0:01:00]} 37. Nxa4 {[%clk 0:01:37]}  Nd1 {[%clk 0:00:45]} 38. Nc5+ {[%clk 0:01:29]}  Kd5 {[%clk 0:00:43]} 39. a4 {[%clk 0:01:25]}  Nc3+ {[%clk 0:00:22]} 40. Kb4 {[%clk 0:01:25]}  Nxa4 {[%clk 0:00:22]} 41. Nxa4 {[%clk 0:01:23]}  Ke4 {[%clk 0:00:23]} 42. Kc4 {[%clk 0:00:53]}  Kf3 {[%clk 0:00:21]} 43. Kd5 {[%clk 0:00:53]}  e4 {[%clk 0:00:17]} 44. Nc5 {[%clk 0:00:45]}  Kxf2 {[%clk 0:00:17]} 45. g4 {[%clk 0:00:45]}  fxg4 {[%clk 0:00:07]} 46. Nxe4+ {[%clk 0:00:38]}  Kf3 {[%clk 0:00:06]} 47. Ke5 {[%clk 0:00:37]}  g3 {[%clk 0:00:05]} 48. Nxg3 {[%clk 0:00:36]}  Kxg3 {[%clk 0:00:06]} 1/2-1/2


[Site "https://www.chess.com"]

[Event "Titled Tuesday Blitz March 22 Late 2022"]
[White "Sanchez, Robert"]
[Black "Kovanova, Baira"]
[WhiteFideId "2034360"]
[BlackFideId "4164083"]
[WhiteElo "2255"]
[BlackElo "2190"]
[Result "0-1"]
[Round "04"]
[TimeControl "180+1"]
[Date "2022.03.22"]
[WhiteClock "0:00:16"]
[BlackClock "0:01:49"]

1. e4 {[%clk 0:03:00]}  e5 {[%clk 0:02:59]} 2. Nf3 {[%clk 0:03:00]}  Nc6 {[%clk 0:02:59]} 3. Bb5 {[%clk 0:03:00]}  a6 {[%clk 0:02:59]} 4. Ba4 {[%clk 0:03:01]}  Nge7 {[%clk 0:02:59]} 5. c3 {[%clk 0:02:59]}  g6 {[%clk 0:02:59]} 6. d4 {[%clk 0:02:59]}  exd4 {[%clk 0:02:59]} 7. cxd4 {[%clk 0:02:59]}  b5 {[%clk 0:03:00]} 8. Bb3 {[%clk 0:02:57]}  Bg7 {[%clk 0:02:59]} 9. O-O {[%clk 0:02:57]}  Na5 {[%clk 0:02:59]} 10. Bc2 {[%clk 0:02:49]}  d6 {[%clk 0:02:59]} 11. h3 {[%clk 0:02:48]}  O-O {[%clk 0:02:59]} 12. Nc3 {[%clk 0:02:41]}  c5 {[%clk 0:02:53]} 13. d5 {[%clk 0:02:29]}  Nc4 {[%clk 0:02:52]} 14. Rb1 {[%clk 0:02:24]}  h6 {[%clk 0:02:43]} 15. Bd3 {[%clk 0:02:09]}  Nb6 {[%clk 0:02:34]} 16. Be3 {[%clk 0:02:09]}  Kh7 {[%clk 0:02:30]} 17. e5 {[%clk 0:01:48]}  Bf5 {[%clk 0:02:24]} 18. exd6 {[%clk 0:01:47]}  Qxd6 {[%clk 0:02:22]} 19. Ne4 {[%clk 0:01:12]}  Bxe4 {[%clk 0:02:09]} 20. Bxe4 {[%clk 0:01:12]}  Nbxd5 {[%clk 0:02:09]} 21. Qc1 {[%clk 0:00:45]}  Rac8 {[%clk 0:01:59]} 22. Rd1 {[%clk 0:00:45]}  Qe6 {[%clk 0:01:59]} 23. Bxd5 {[%clk 0:00:35]}  Nxd5 {[%clk 0:01:59]} 24. Bxc5 {[%clk 0:00:34]}  Rfe8 {[%clk 0:01:55]} 25. Re1 {[%clk 0:00:28]}  Qf5 {[%clk 0:01:51]} 26. Rxe8 {[%clk 0:00:20]}  Rxe8 {[%clk 0:01:51]} 27. Qd1 {[%clk 0:00:18]}  Nf4 {[%clk 0:01:50]} 28. Kh2 {[%clk 0:00:16]}  Qxc5 {[%clk 0:01:49]} 0-1


[Site "https://www.chess.com"]

[Event "Titled Tuesday Blitz March 22 Late 2022"]
[White "Shimanov, Aleksandr"]
[Black "Tristan, Leonardo"]
[WhiteFideId "4198603"]
[BlackFideId "113816"]
[WhiteElo "2636"]
[BlackElo "2404"]
[Result "1-0"]
[Round "04"]
[TimeControl "180+1"]
[Date "2022.03.22"]
[WhiteClock "0:01:37"]
[BlackClock "0:00:08"]

1. e4 {[%clk 0:03:00]}  d5 {[%clk 0:02:59]} 2. exd5 {[%clk 0:02:57]}  Qxd5 {[%clk 0:03:00]} 3. Nc3 {[%clk 0:02:57]}  Qa5 {[%clk 0:03:00]} 4. Bc4 {[%clk 0:02:55]}  Nf6 {[%clk 0:03:00]} 5. d4 {[%clk 0:02:54]}  Bg4 {[%clk 0:02:56]} 6. f3 {[%clk 0:02:51]}  Bd7 {[%clk 0:02:55]} 7. Ne2 {[%clk 0:02:33]}  e6 {[%clk 0:02:54]} 8. O-O {[%clk 0:02:33]}  Be7 {[%clk 0:02:55]} 9. Ne4 {[%clk 0:02:30]}  O-O {[%clk 0:02:51]} 10. c3 {[%clk 0:02:28]}  Nxe4 {[%clk 0:02:13]} 11. fxe4 {[%clk 0:02:27]}  c5 {[%clk 0:02:14]} 12. d5 {[%clk 0:02:22]}  exd5 {[%clk 0:02:06]} 13. Bxd5 {[%clk 0:02:22]}  Bc6 {[%clk 0:02:05]} 14. Nf4 {[%clk 0:02:21]}  Bg5 {[%clk 0:01:53]} 15. Ne6 {[%clk 0:02:14]}  Bxc1 {[%clk 0:01:42]} 16. Nxf8 {[%clk 0:02:13]}  Be3+ {[%clk 0:01:42]} 17. Kh1 {[%clk 0:02:14]}  Bxd5 {[%clk 0:01:04]} 18. Qxd5 {[%clk 0:02:11]}  Qc7 {[%clk 0:01:03]} 19. Ne6 {[%clk 0:02:08]}  Qe7 {[%clk 0:00:49]} 20. Nd8 {[%clk 0:02:04]}  Nc6 {[%clk 0:00:29]} 21. Rxf7 {[%clk 0:01:49]}  Qxd8 {[%clk 0:00:21]} 22. Rd7+ {[%clk 0:01:48]}  Kh8 {[%clk 0:00:21]} 23. Rxd8+ {[%clk 0:01:48]}  Rxd8 {[%clk 0:00:22]} 24. Qf7 {[%clk 0:01:46]}  Rg8 {[%clk 0:00:12]} 25. Re1 {[%clk 0:01:41]}  Bh6 {[%clk 0:00:07]} 26. e5 {[%clk 0:01:40]}  Nd8 {[%clk 0:00:07]} 27. Qd7 {[%clk 0:01:39]}  Bg5 {[%clk 0:00:06]} 28. e6 {[%clk 0:01:39]}  Nc6 {[%clk 0:00:06]} 29. e7 {[%clk 0:01:36]}  Nxe7 {[%clk 0:00:06]} 30. Rxe7 {[%clk 0:01:37]}  Bxe7 {[%clk 0:00:07]} 31. Qxe7 {[%clk 0:01:37]}  b6 {[%clk 0:00:07]} 32. Qxa7 {[%clk 0:01:37]}  Re8 {[%clk 0:00:08]} 33. h3 {[%clk 0:01:37]} 1-0


[Site "https://www.chess.com"]

[Event "Titled Tuesday Blitz March 22 Late 2022"]
[White "Silvestre, Christian"]
[Black "Thomas, Anysia"]
[WhiteFideId "30956269"]
[BlackFideId "670472"]
[WhiteElo "2415"]
[BlackElo "2002"]
[Result "0-1"]
[Round "04"]
[TimeControl "180+1"]
[Date "2022.03.22"]
[WhiteClock "0:00:16"]
[BlackClock "0:00:39"]

1. Nf3 {[%clk 0:03:00]}  g6 {[%clk 0:02:56]} 2. g3 {[%clk 0:03:00]}  Bg7 {[%clk 0:02:54]} 3. Bg2 {[%clk 0:03:00]}  c5 {[%clk 0:02:53]} 4. O-O {[%clk 0:03:00]}  Nc6 {[%clk 0:02:52]} 5. c4 {[%clk 0:02:59]}  e6 {[%clk 0:02:51]} 6. Nc3 {[%clk 0:02:59]}  Nge7 {[%clk 0:02:51]} 7. e3 {[%clk 0:02:57]}  O-O {[%clk 0:02:49]} 8. d4 {[%clk 0:02:57]}  cxd4 {[%clk 0:02:50]} 9. exd4 {[%clk 0:02:57]}  d5 {[%clk 0:02:48]} 10. c5 {[%clk 0:02:57]}  e5 {[%clk 0:02:42]} 11. Be3 {[%clk 0:02:45]}  Bg4 {[%clk 0:02:35]} 12. dxe5 {[%clk 0:02:27]}  d4 {[%clk 0:02:26]} 13. Bxd4 {[%clk 0:02:01]}  Bxf3 {[%clk 0:02:21]} 14. Qxf3 {[%clk 0:01:58]}  Qxd4 {[%clk 0:02:16]} 15. Ne4 {[%clk 0:01:10]}  Qxe5 {[%clk 0:02:09]} 16. Rac1 {[%clk 0:01:08]}  Nf5 {[%clk 0:02:03]} 17. Rfd1 {[%clk 0:01:06]}  Nfd4 {[%clk 0:02:00]} 18. Qe3 {[%clk 0:00:53]}  Rfe8 {[%clk 0:01:51]} 19. Nd6 {[%clk 0:00:52]}  Qxe3 {[%clk 0:01:45]} 20. fxe3 {[%clk 0:00:52]}  Rxe3 {[%clk 0:01:39]} 21. Bd5 {[%clk 0:00:31]}  Rf8 {[%clk 0:00:57]} 22. Rf1 {[%clk 0:00:23]}  Re7 {[%clk 0:00:47]} 23. Rce1 {[%clk 0:00:22]}  Rxe1 {[%clk 0:00:45]} 24. Rxe1 {[%clk 0:00:23]}  Nb4 {[%clk 0:00:40]} 25. Bc4 {[%clk 0:00:21]}  Nf3+ {[%clk 0:00:38]} 26. Kf2 {[%clk 0:00:20]}  Nxe1 {[%clk 0:00:39]} 27. Kxe1 {[%clk 0:00:20]}  Nc2+ {[%clk 0:00:33]} 28. Kd2 {[%clk 0:00:19]}  Nd4 {[%clk 0:00:33]} 29. Kc3 {[%clk 0:00:19]}  Nf5+ {[%clk 0:00:30]} 30. Kb4 {[%clk 0:00:15]}  Nxd6 {[%clk 0:00:30]} 31. cxd6 {[%clk 0:00:16]}  Rd8 {[%clk 0:00:31]} 32. Kc5 {[%clk 0:00:16]}  Bf8 {[%clk 0:00:31]} 33. Kb4 {[%clk 0:00:14]}  Rxd6 {[%clk 0:00:32]} 34. Kb3 {[%clk 0:00:14]}  a6 {[%clk 0:00:31]} 35. h4 {[%clk 0:00:12]}  Kg7 {[%clk 0:00:32]} 36. Be2 {[%clk 0:00:11]}  h5 {[%clk 0:00:33]} 37. Bf3 {[%clk 0:00:11]}  b5 {[%clk 0:00:33]} 38. a4 {[%clk 0:00:11]}  bxa4+ {[%clk 0:00:33]} 39. Kxa4 {[%clk 0:00:12]}  Rd4+ {[%clk 0:00:33]} 40. b4 {[%clk 0:00:12]}  Rxb4+ {[%clk 0:00:33]} 41. Ka5 {[%clk 0:00:13]}  Rb3 {[%clk 0:00:31]} 42. g4 {[%clk 0:00:14]}  Rxf3 {[%clk 0:00:31]} 43. gxh5 {[%clk 0:00:14]}  gxh5 {[%clk 0:00:31]} 44. Ka4 {[%clk 0:00:13]}  Rg3 {[%clk 0:00:32]} 45. Ka5 {[%clk 0:00:14]}  Rg4 {[%clk 0:00:33]} 46. Kb6 {[%clk 0:00:13]}  Rxh4 {[%clk 0:00:34]} 47. Ka5 {[%clk 0:00:14]}  Re4 {[%clk 0:00:35]} 48. Kb6 {[%clk 0:00:15]}  Re6+ {[%clk 0:00:36]} 49. Ka5 {[%clk 0:00:15]}  h4 {[%clk 0:00:36]} 50. Ka4 {[%clk 0:00:15]}  h3 {[%clk 0:00:37]} 51. Kb3 {[%clk 0:00:16]}  h2 {[%clk 0:00:38]} 52. Kc4 {[%clk 0:00:17]}  h1=Q {[%clk 0:00:39]} 53. Kd3 {[%clk 0:00:17]}  Qh4 {[%clk 0:00:40]} 54. Kd2 {[%clk 0:00:16]}  Qh2+ {[%clk 0:00:39]} 55. Kc1 {[%clk 0:00:16]}  Re1# {[%clk 0:00:39]} 0-1


[Site "https://www.chess.com"]

[Event "Titled Tuesday Blitz March 22 Late 2022"]
[White "Swicarz, Maciej"]
[Black "Kujawski, Adam"]
[WhiteFideId "1113585"]
[BlackFideId "1100920"]
[WhiteElo "2057"]
[BlackElo "2053"]
[Result "1-0"]
[Round "04"]
[TimeControl "180+1"]
[Date "2022.03.22"]
[WhiteClock "0:01:38"]
[BlackClock "0:00:02"]

1. e4 {[%clk 0:03:00]}  e5 {[%clk 0:02:59]} 2. Nf3 {[%clk 0:03:00]}  Nc6 {[%clk 0:02:59]} 3. c3 {[%clk 0:03:00]}  d5 {[%clk 0:02:58]} 4. Qa4 {[%clk 0:03:00]}  Bd7 {[%clk 0:02:57]} 5. exd5 {[%clk 0:02:59]}  Nd4 {[%clk 0:02:57]} 6. Qd1 {[%clk 0:03:00]}  Nxf3+ {[%clk 0:02:57]} 7. Qxf3 {[%clk 0:03:01]}  Nf6 {[%clk 0:02:53]} 8. h3 {[%clk 0:03:00]}  e4 {[%clk 0:02:52]} 9. Qe3 {[%clk 0:02:58]}  Bd6 {[%clk 0:02:44]} 10. d4 {[%clk 0:02:36]}  O-O {[%clk 0:02:38]} 11. c4 {[%clk 0:02:35]}  c6 {[%clk 0:02:18]} 12. dxc6 {[%clk 0:02:33]}  bxc6 {[%clk 0:01:59]} 13. Be2 {[%clk 0:02:30]}  Rc8 {[%clk 0:01:26]} 14. Nc3 {[%clk 0:02:25]}  c5 {[%clk 0:01:24]} 15. O-O {[%clk 0:02:14]}  cxd4 {[%clk 0:01:20]} 16. Qxd4 {[%clk 0:02:14]}  Bxh3 {[%clk 0:00:56]} 17. Rd1 {[%clk 0:02:13]}  Bxg2 {[%clk 0:00:15]} 18. Qxd6 {[%clk 0:02:10]}  Bf3 {[%clk 0:00:13]} 19. Qxd8 {[%clk 0:02:05]}  Rfxd8 {[%clk 0:00:14]} 20. Rxd8+ {[%clk 0:02:04]}  Rxd8 {[%clk 0:00:14]} 21. Bxf3 {[%clk 0:02:04]}  exf3 {[%clk 0:00:14]} 22. Bg5 {[%clk 0:02:04]}  Rd4 {[%clk 0:00:13]} 23. Bxf6 {[%clk 0:01:52]}  gxf6 {[%clk 0:00:14]} 24. Rd1 {[%clk 0:01:48]}  Rxc4 {[%clk 0:00:08]} 25. Rd3 {[%clk 0:01:47]}  Rg4+ {[%clk 0:00:07]} 26. Kf1 {[%clk 0:01:47]}  Rb4 {[%clk 0:00:07]} 27. b3 {[%clk 0:01:47]}  h5 {[%clk 0:00:04]} 28. Rxf3 {[%clk 0:01:46]}  h4 {[%clk 0:00:04]} 29. Nd5 {[%clk 0:01:44]}  Rd4 {[%clk 0:00:02]} 30. Nxf6+ {[%clk 0:01:42]}  Kg7 {[%clk 0:00:02]} 31. Kg2 {[%clk 0:01:38]} 1-0


[Site "https://www.chess.com"]

[Event "Titled Tuesday Blitz March 22 Late 2022"]
[White "Szpar, Milosz"]
[Black "Goryachkina, Aleksandra"]
[WhiteFideId "1184989"]
[BlackFideId "4147103"]
[WhiteElo "2447"]
[BlackElo "2426"]
[Result "0-1"]
[Round "04"]
[TimeControl "180+1"]
[Date "2022.03.22"]
[WhiteClock "0:00:29"]
[BlackClock "0:00:08"]

1. e4 {[%clk 0:02:50]}  e6 {[%clk 0:02:59]} 2. d4 {[%clk 0:02:49]}  d5 {[%clk 0:02:59]} 3. Nd2 {[%clk 0:02:48]}  c5 {[%clk 0:02:59]} 4. exd5 {[%clk 0:02:48]}  Qxd5 {[%clk 0:02:59]} 5. Ngf3 {[%clk 0:02:48]}  cxd4 {[%clk 0:03:00]} 6. Bc4 {[%clk 0:02:48]}  Qd7 {[%clk 0:03:00]} 7. O-O {[%clk 0:02:49]}  Nc6 {[%clk 0:03:00]} 8. Nb3 {[%clk 0:02:49]}  a6 {[%clk 0:03:00]} 9. Nbxd4 {[%clk 0:02:48]}  Nxd4 {[%clk 0:03:00]} 10. Qxd4 {[%clk 0:02:49]}  Qxd4 {[%clk 0:03:00]} 11. Nxd4 {[%clk 0:02:50]}  Bd7 {[%clk 0:03:00]} 12. Be2 {[%clk 0:02:49]}  Bc5 {[%clk 0:02:59]} 13. Nb3 {[%clk 0:02:50]}  Bb6 {[%clk 0:02:58]} 14. Bf3 {[%clk 0:02:50]}  O-O-O {[%clk 0:02:56]} 15. c4 {[%clk 0:02:43]}  Ne7 {[%clk 0:02:54]} 16. Bd2 {[%clk 0:02:26]}  Bc6 {[%clk 0:02:50]} 17. Bxc6 {[%clk 0:02:23]}  Nxc6 {[%clk 0:02:50]} 18. Bc3 {[%clk 0:02:24]}  f6 {[%clk 0:02:46]} 19. Rfd1 {[%clk 0:02:11]}  e5 {[%clk 0:02:39]} 20. Kf1 {[%clk 0:02:11]}  Rxd1+ {[%clk 0:02:28]} 21. Rxd1 {[%clk 0:02:11]}  Rd8 {[%clk 0:02:28]} 22. Rxd8+ {[%clk 0:02:03]}  Nxd8 {[%clk 0:02:28]} 23. Bb4 {[%clk 0:01:57]}  Ne6 {[%clk 0:02:27]} 24. g3 {[%clk 0:01:55]}  Kd7 {[%clk 0:02:25]} 25. Ke2 {[%clk 0:01:52]}  Kc6 {[%clk 0:02:13]} 26. a4 {[%clk 0:01:49]}  h5 {[%clk 0:01:39]} 27. h4 {[%clk 0:01:49]}  f5 {[%clk 0:01:23]} 28. Bc3 {[%clk 0:01:46]}  e4 {[%clk 0:01:20]} 29. f3 {[%clk 0:01:33]}  exf3+ {[%clk 0:01:14]} 30. Kxf3 {[%clk 0:01:32]}  g6 {[%clk 0:01:13]} 31. Nd2 {[%clk 0:01:19]}  Bc7 {[%clk 0:00:52]} 32. b4 {[%clk 0:01:13]}  b5 {[%clk 0:00:42]} 33. cxb5+ {[%clk 0:01:13]}  axb5 {[%clk 0:00:43]} 34. a5 {[%clk 0:01:13]}  f4 {[%clk 0:00:40]} 35. g4 {[%clk 0:01:10]}  hxg4+ {[%clk 0:00:28]} 36. Kxg4 {[%clk 0:01:11]}  Kd5 {[%clk 0:00:28]} 37. Kf3 {[%clk 0:01:11]}  Bb8 {[%clk 0:00:19]} 38. Ne4 {[%clk 0:01:03]}  Kc4 {[%clk 0:00:18]} 39. Be1 {[%clk 0:01:00]}  Nd4+ {[%clk 0:00:18]} 40. Kg4 {[%clk 0:01:01]}  Kd3 {[%clk 0:00:18]} 41. a6 {[%clk 0:00:57]}  Kxe4 {[%clk 0:00:14]} 42. Kg5 {[%clk 0:00:44]}  f3 {[%clk 0:00:12]} 43. Kxg6 {[%clk 0:00:43]}  Ke3 {[%clk 0:00:10]} 44. h5 {[%clk 0:00:44]}  Nc6 {[%clk 0:00:05]} 45. h6 {[%clk 0:00:40]}  f2 {[%clk 0:00:04]} 46. Bxf2+ {[%clk 0:00:36]}  Kxf2 {[%clk 0:00:05]} 47. h7 {[%clk 0:00:37]}  Be5 {[%clk 0:00:05]} 48. Kf5 {[%clk 0:00:36]}  Bh8 {[%clk 0:00:03]} 49. Ke6 {[%clk 0:00:36]}  Ke3 {[%clk 0:00:02]} 50. Kd6 {[%clk 0:00:36]}  Na7 {[%clk 0:00:02]} 51. Kc5 {[%clk 0:00:34]}  Kd3 {[%clk 0:00:02]} 52. Kb6 {[%clk 0:00:34]}  Bd4+ {[%clk 0:00:02]} 53. Kb7 {[%clk 0:00:33]}  Kc4 {[%clk 0:00:02]} 54. h8=Q {[%clk 0:00:26]}  Bxh8 {[%clk 0:00:02]} 55. Kxa7 {[%clk 0:00:27]}  Bd4+ {[%clk 0:00:03]} 56. Kb7 {[%clk 0:00:26]}  Kxb4 {[%clk 0:00:03]} 57. a7 {[%clk 0:00:27]}  Bxa7 {[%clk 0:00:03]} 58. Kxa7 {[%clk 0:00:27]}  Kc3 {[%clk 0:00:04]} 59. Kb6 {[%clk 0:00:27]}  b4 {[%clk 0:00:04]} 60. Kc5 {[%clk 0:00:28]}  b3 {[%clk 0:00:05]} 61. Kd5 {[%clk 0:00:27]}  b2 {[%clk 0:00:06]} 62. Ke6 {[%clk 0:00:27]}  b1=Q {[%clk 0:00:07]} 63. Ke5 {[%clk 0:00:28]}  Qd1 {[%clk 0:00:07]} 64. Ke4 {[%clk 0:00:28]}  Qd4+ {[%clk 0:00:07]} 65. Kf5 {[%clk 0:00:28]}  Qe3 {[%clk 0:00:07]} 66. Kf6 {[%clk 0:00:28]}  Kd4 {[%clk 0:00:07]} 67. Kf7 {[%clk 0:00:29]}  Qe5 {[%clk 0:00:07]} 68. Kf8 {[%clk 0:00:30]}  Qc7 {[%clk 0:00:07]} 69. Ke8 {[%clk 0:00:29]}  Ke5 {[%clk 0:00:08]} 70. Kf8 {[%clk 0:00:29]}  Kf6 {[%clk 0:00:08]} 71. Kg8 {[%clk 0:00:29]}  Qg7# {[%clk 0:00:08]} 0-1


[Site "https://www.chess.com"]